fUST/lending_fUST_20250326
["ID","MTS","AMOUNT","RATE_DAILY","PERIOD"]
[356707685,1742999201864,-1945.71,0.0004521,120]
[356707686,1742999201904,-313.44218693,0.0004521,120]
[356707687,1742999201945,-313.44218693,0.0004521,120]
[356707688,1742999201985,-313.44218693,0.0004521,120]
[356707689,1742999202026,-313.44218693,0.0004521,120]
[356707690,1742999202065,-313.44218693,0.0004521,120]
[356707691,1742999202103,-313.44218693,0.0004521,120]
[356707692,1742999202141,-313.44218693,0.0004521,120]
[356707693,1742999202180,-313.44218693,0.0004521,120]
[356707694,1742999202220,-313.44218693,0.0004521,120]
[356707695,1742999202264,-313.44218693,0.0004521,120]
[356707696,1742999202310,-313.44218693,0.0004521,120]
[356707697,1742999202348,-313.44218693,0.0004521,120]
[356707698,1742999202386,-313.44218693,0.0004521,120]
[356707699,1742999202425,-313.44218693,0.0004521,120]
[356707700,1742999202463,-313.44218693,0.0004521,120]
[356707701,1742999202500,-313.44218693,0.0004521,120]
[356707702,1742999202540,-313.44218693,0.0004521,120]
[356707703,1742999202579,-313.44218693,0.0004521,120]
[356707704,1742999202620,-313.44218693,0.0004521,120]
[356707705,1742999202667,-313.44,0.0004521,120]
[356707706,1742999202710,-731.36510283,0.0004521,120]
[356707707,1742999202751,-731.36510283,0.0004521,120]
[356707708,1742999202791,-731.36510283,0.0004521,120]
[356707709,1742999202830,-731.36510283,0.0004521,120]
[356707710,1742999202868,-731.36510283,0.0004521,120]
[356707711,1742999202909,-731.36510283,0.0004521,120]
[356707712,1742999202949,-731.36510283,0.0004521,120]
[356707713,1742999202992,-731.36510283,0.0004521,120]
[356707714,1742999203031,-731.36510283,0.0004521,120]
[356707715,1742999203072,-731.36510283,0.0004521,120]
[356707716,1742999203111,-731.36510283,0.0004521,120]
[356707717,1742999203152,-731.36510283,0.0004521,120]
[356707718,1742999203191,-731.36510283,0.0004521,120]
[356707719,1742999203233,-731.36510283,0.0004521,120]
[356707720,1742999203269,-731.36510283,0.0004521,120]
[356707721,1742999203306,-731.36510283,0.0004521,120]
[356707722,1742999203343,-731.36510283,0.0004521,120]
[356707723,1742999203381,-731.36510283,0.0004521,120]
[356707724,1742999203418,-731.36510283,0.0004521,120]
[356707725,1742999203456,-731.36,0.0004521,120]
[356707726,1742999203491,-1082.71285419,0.00045261,120]
[356707727,1742999203532,-200.0,0.000453,120]
[356707728,1742999203585,-1082.71285419,0.00045361,120]
[356707729,1742999203625,-1082.71285419,0.00045461,120]
[356707730,1742999203665,-1082.71285419,0.00045561,120]
[356707731,1742999203705,-226.41059,0.000456,120]
[356707732,1742999203848,-313.86122,0.000456,120]
[356707733,1742999203888,-200.0,0.000456,120]
[356707734,1742999203930,-1082.71285419,0.00045661,120]
[356707735,1742999203970,-1900.0,0.000457,120]
[356707736,1742999204012,-1082.71285419,0.00045761,120]
[356707737,1742999204052,-1082.71285419,0.00045861,120]
[356707738,1742999204092,-697.27741854,0.0004588,30]
[356707739,1742999204130,-216.27442529,0.000459,120]
[356707740,1742999204168,-200.0,0.00045921,120]
[356707741,1742999204207,-1082.71285419,0.00045961,120]
[356707742,1742999204248,-200.0,0.00045996,120]
[356707743,1742999204290,-10000.0,0.00046,46]
[356707744,1742999204329,-701.57913225,0.00046,120]
[356707745,1742999204367,-250.10824472,0.00046,120]
[356707746,1742999204408,-200.0,0.00046,120]
[356707747,1742999204449,-980.9096961,0.00046,120]
[356707748,1742999204488,-801.2876837,0.00046,120]
[356707749,1742999204530,-3145.45920339,0.00046,30]
[356707750,1742999204570,-21203.0,0.00046,120]
[356707751,1742999204610,-1082.71285419,0.00046061,120]
[356707752,1742999204651,-1082.71285419,0.00046161,120]
[356707753,1742999204693,-1082.71285419,0.00046261,120]
[356707754,1742999204735,-200.0,0.00046343,120]
[356707755,1742999204775,-1082.71285419,0.00046361,120]
[356707756,1742999204815,-200.0,0.00046369,120]
[356707757,1742999204855,-1082.71285419,0.00046461,120]
[356707758,1742999204895,-1082.71285419,0.00046561,120]
[356707759,1742999204937,-562.12918687,0.00046575,30]
[356707760,1742999204977,-1500.0,0.00046575,120]
[356707761,1742999205019,-1500.0,0.00046575,120]
[356707762,1742999205062,-1500.0,0.00046575,120]
[356707763,1742999205108,-1500.0,0.00046575,120]
[356707764,1742999205150,-1500.0,0.00046575,120]
[356707765,1742999205198,-1500.0,0.00046575,120]
[356707766,1742999205237,-1500.0,0.00046575,120]
[356707767,1742999205278,-1500.0,0.00046575,120]
[356707768,1742999205321,-1500.0,0.00046575,120]
[356707769,1742999205361,-1003.41222628,0.00046575,120]
[356707770,1742999205403,-200.0,0.00046643,120]
[356707771,1742999205448,-1082.71285419,0.00046661,120]
[356707772,1742999205490,-200.0,0.000467,60]
[356707773,1742999205529,-200.0,0.000467,60]
[356707774,1742999205573,-200.0,0.000467,60]
[356707775,1742999205614,-200.0,0.000467,60]
[356707776,1742999205653,-200.0,0.000467,60]
[356707777,1742999205700,-200.0,0.000467,60]
[356707778,1742999205743,-200.0,0.000467,60]
[356707779,1742999205792,-200.0,0.000467,60]
[356707780,1742999205833,-200.0,0.000467,60]
[356707781,1742999205873,-210.0,0.000467,60]
[356707782,1742999205915,-200.0,0.00046751,120]
[356707783,1742999205957,-1082.71285419,0.00046761,120]
[356707784,1742999205998,-24002.12990049,0.000468,120]
[356707785,1742999206038,-1082.71285419,0.00046861,120]
[356707786,1742999206101,-200.0,0.00046928,120]
[356707787,1742999206141,-1082.71285419,0.00046961,120]
[356707788,1742999206182,-3301.89422548,0.00046998,30]
[356707789,1742999206224,-10000.0,0.00047,47]
[356707790,1742999206265,-6582.59934732,0.00047,120]
[356707791,1742999206308,-300.0,0.00047,30]
[356707792,1742999206348,-1132.0,0.00047,120]
[356707793,1742999206387,-560.0,0.00047,120]
[356707794,1742999206428,-2129.38805272,0.00047,120]
[356707795,1742999206467,-328.0,0.00047,60]
[356707796,1742999206506,-1082.71285419,0.00047061,120]
[356707797,1742999206546,-707.33,0.0004707,120]
[356707798,1742999206587,-200.0,0.00047115,120]
[356707799,1742999206625,-500.0,0.00047123,120]
[356707800,1742999206665,-500.0,0.00047123,120]
[356707801,1742999206704,-500.0,0.00047123,120]
[356707802,1742999206744,-500.0,0.00047123,120]
[356707803,1742999206786,-500.0,0.00047123,120]
[356707804,1742999206827,-500.0,0.00047123,120]
[356707805,1742999206867,-500.0,0.00047123,120]
[356707806,1742999206909,-500.0,0.00047123,120]
[356707807,1742999206947,-500.0,0.00047123,120]
[356707808,1742999206986,-500.0,0.00047123,120]
[356707809,1742999207030,-500.0,0.00047123,120]
[356707810,1742999207070,-500.0,0.00047123,120]
[356707811,1742999207112,-500.0,0.00047123,120]
[356707812,1742999207152,-500.0,0.00047123,120]
[356707813,1742999207195,-500.0,0.00047123,120]
[356707814,1742999207234,-500.0,0.00047123,120]
[356707815,1742999207272,-500.0,0.00047123,120]
[356707816,1742999207312,-500.0,0.00047123,120]
[356707817,1742999207351,-500.0,0.00047123,120]
[356707818,1742999207391,-278.06775092,0.00047123,120]
[356707819,1742999207433,-1082.71285419,0.00047161,120]
[356707820,1742999207475,-200.0,0.00047226,120]
[356707821,1742999207515,-1082.71285419,0.00047261,120]
[356707822,1742999207554,-200.0,0.0004728,120]
[356707823,1742999207593,-200.0,0.00047307,120]
[356707824,1742999207632,-1082.71285419,0.00047361,120]
[356707825,1742999207675,-110193.0,0.0004744,30]
[356707826,1742999207853,-1115496.0,0.0004744,30]
[356707827,1742999207895,-1082.71285419,0.00047461,120]
[356707828,1742999207939,-11619.0,0.000475,120]
[356707829,1742999207980,-2000.0,0.000475,120]
[356707830,1742999208024,-15499.88259164,0.000475,120]
[356707831,1742999208070,-200.0,0.00047535,120]
[356707832,1742999208113,-1082.71285419,0.00047561,120]
[356707833,1742999208155,-1082.71285419,0.00047661,120]
[356707834,1742999208200,-226.41059,0.000477,120]
[356707835,1742999208242,-313.86122,0.000477,120]
[356707836,1742999208285,-200.0,0.000477,120]
[356707837,1742999208328,-200.0,0.00047743,120]
[356707838,1742999208371,-1082.71285419,0.00047761,120]
[356707839,1742999208416,-200.0,0.00047772,120]
[356707840,1742999208459,-50000.0,0.000478,40]
[356707841,1742999208502,-348.31316452,0.000478,120]
[356707842,1742999208543,-276559.0,0.000478,120]
[356707843,1742999208588,-25137.09833886,0.000478,50]
[356707844,1742999208635,-10422.28,0.00047813,120]
[356707845,1742999208680,-1082.71285419,0.00047861,120]
[356707846,1742999208724,-93005.50630876,0.0004788,120]
[356707847,1742999208768,-20000.0,0.00047885,30]
[356707848,1742999208816,-90000.0,0.00047885,30]
[356707849,1742999208864,-30000.0,0.00047885,120]
[356707850,1742999208908,-10000.0,0.00047885,40]
[356707851,1742999208956,-3430.0,0.000479,120]
[356707852,1742999208998,-1524.16624413,0.000479,120]
[356707853,1742999209040,-1754.33784839,0.000479,120]
[356707854,1742999209086,-200.0,0.00047928,120]
[356707855,1742999209130,-1082.71285419,0.00047961,120]
[356707856,1742999209172,-750.0,0.00047999,120]
[356707857,1742999209215,-200.0,0.00048,120]
[356707858,1742999209255,-200.0,0.00048,120]
[356707859,1742999209297,-2000.0,0.00048,120]
[356707860,1742999209338,-1000.0,0.00048,120]
[356707861,1742999209378,-1000.0,0.00048,120]
[356707862,1742999209419,-2036.0,0.00048,120]
[356707863,1742999209460,-58478.81636414,0.00048,120]
[356707864,1742999209500,-1850.0833808,0.00048,120]
[356707865,1742999209540,-13789.0,0.00048,30]
[356707866,1742999209578,-503.03290143,0.00048,120]
[356707867,1742999209616,-2256.0,0.00048,120]
[356707868,1742999209655,-240.0777014,0.00048,120]
[356707869,1742999209697,-21203.0,0.00048,120]
[356707870,1742999209738,-3091.77776936,0.00048,120]
[356707871,1742999209778,-1082.71285419,0.00048061,120]
[356707872,1742999209819,-200.0,0.00048105,120]
[356707873,1742999209858,-20000.0,0.0004812,40]
[356707874,1742999209900,-1082.71285419,0.00048161,120]
[356707875,1742999209942,-200.0,0.00048173,120]
[356707876,1742999209982,-200.0,0.00048175,120]
[356707877,1742999210028,-30000.0,0.0004825,120]
[356707878,1742999210069,-200.0,0.00048254,120]
[356707879,1742999210111,-1082.71285419,0.00048261,120]
[356707880,1742999210151,-30000.0,0.0004832,120]
[356707881,1742999210193,-200.0,0.00048351,120]
[356707882,1742999210231,-1082.71285419,0.00048361,120]
[356707883,1742999210272,-200.0,0.00048378,120]
[356707884,1742999210310,-20000.0,0.0004838,30]
[356707885,1742999210349,-2082.70273438,0.000484,120]
[356707886,1742999210387,-1082.71285419,0.00048461,120]
[356707887,1742999210427,-812.09512064,0.0004849,120]
[356707888,1742999210463,-812.09512064,0.0004849,120]
[356707889,1742999210500,-812.09512064,0.0004849,120]
[356707890,1742999210537,-812.09512064,0.0004849,120]
[356707891,1742999210575,-812.09512064,0.0004849,120]
[356707892,1742999210611,-812.09512064,0.0004849,120]
[356707893,1742999210648,-812.09512064,0.0004849,120]
[356707894,1742999210689,-812.09512064,0.0004849,120]
[356707895,1742999210727,-812.09512064,0.0004849,120]
[356707896,1742999210765,-812.09512064,0.0004849,120]
[356707897,1742999210804,-500.0,0.00048493,31]
[356707898,1742999210842,-2439.0,0.000485,120]
[356707899,1742999210881,-408.28470879,0.000485,120]
[356707900,1742999210923,-10000.0,0.0004853,40]
[356707901,1742999210969,-30000.0,0.0004856,50]
[356707902,1742999211015,-1082.71285419,0.00048561,120]
[356707903,1742999211056,-286.0,0.00048575,120]
[356707904,1742999211100,-200.0,0.00048587,120]
[356707905,1742999211138,-50000.0,0.0004865,30]
[356707906,1742999211180,-1082.71285419,0.00048661,120]
[356707907,1742999211220,-50000.0,0.000487,120]
[356707908,1742999211264,-20000.0,0.0004876,120]
[356707909,1742999211303,-20000.0,0.0004876,40]
[356707910,1742999211342,-20000.0,0.0004876,40]
[356707911,1742999211380,-1082.71285419,0.00048761,120]
[356707912,1742999211419,-500.0,0.00048767,33]
[356707913,1742999211460,-6026.47543739,0.000488,120]
[356707914,1742999211499,-823.34197527,0.000488,120]
[356707915,1742999211539,-373.60643906,0.000488,120]
[356707916,1742999211580,-1082.71285419,0.00048861,120]
[356707917,1742999211621,-2030.2378016,0.0004889,120]
[356707918,1742999211660,-2030.2378016,0.0004889,120]
[356707919,1742999211707,-1082.71285419,0.00048961,120]
[356707920,1742999211748,-442.07879971,0.00048963,120]
[356707921,1742999211902,-1000.0,0.00048999,120]
[356707922,1742999211942,-706.85,0.00049,30]
[356707923,1742999211991,-2575.71711286,0.00049,120]
[356707924,1742999212032,-500.0,0.00049,120]
[356707925,1742999212070,-1000.0,0.00049,120]
[356707926,1742999212109,-861.92789937,0.00049,120]
[356707927,1742999212147,-412.0,0.00049,120]
[356707928,1742999212187,-1971.06701075,0.00049,30]
[356707929,1742999212226,-414.0,0.00049,120]
[356707930,1742999212265,-759.51924934,0.00049,120]
[356707931,1742999212304,-500.0,0.00049041,35]
[356707932,1742999212345,-1082.71285419,0.00049061,120]
[356707933,1742999212383,-369.43254498,0.000491,120]
[356707934,1742999212421,-1082.71285419,0.00049161,120]
[356707935,1742999212459,-1005468.0,0.0004922,30]
[356707936,1742999212496,-1082.71285419,0.00049261,120]
[356707937,1742999212533,-909.37416987,0.00049293,120]
[356707938,1742999212570,-457.66929754,0.00049315,37]
[356707939,1742999212607,-1672.333164,0.00049315,120]
[356707940,1742999212645,-1672.333164,0.00049315,120]
[356707941,1742999212684,-1672.333164,0.00049315,120]
[356707942,1742999212735,-1672.333164,0.00049315,120]
[356707943,1742999212780,-1672.333164,0.00049315,120]
[356707944,1742999212824,-1672.333164,0.00049315,120]
[356707945,1742999212865,-1672.333164,0.00049315,120]
[356707946,1742999212906,-1672.333164,0.00049315,120]
[356707947,1742999212948,-1672.333164,0.00049315,120]
[356707948,1742999212991,-1672.333164,0.00049315,120]
[356707949,1742999213032,-1672.333164,0.00049315,120]
[356707950,1742999213073,-1672.333164,0.00049315,120]
[356707951,1742999213115,-1672.333164,0.00049315,120]
[356707952,1742999213154,-1672.333164,0.00049315,120]
[356707953,1742999213193,-1672.333164,0.00049315,120]
[356707954,1742999213233,-1672.333164,0.00049315,120]
[356707955,1742999213272,-1672.333164,0.00049315,120]
[356707956,1742999213313,-1672.333164,0.00049315,120]
[356707957,1742999213353,-1672.333164,0.00049315,120]
[356707958,1742999213394,-1672.33317033,0.00049315,120]
[356707959,1742999213505,936.81258666,0.000362,98]
[356707960,1742999213598,936.81258666,0.00038573,112]
[356707961,1742999214123,936.81258666,0.000449,120]
[356707962,1742999219925,151.0,0.00049315,120]
[356707963,1742999220232,151.0,0.00049315,120]
[356707964,1742999220577,151.0,0.00049315,120]
[356707965,1742999221101,151.0,0.00049315,120]
[356707966,1742999221485,355.38738292,0.00039999,31]
[356707967,1742999222187,500.0,0.00039999,31]
[356707968,1742999222236,151.0,0.00049315,120]
[356707969,1742999222293,292.66741043,0.00039999,31]
[356707970,1742999222452,500.0,0.00039999,31]
[356707971,1742999222508,151.0,0.00049315,120]
[356707972,1742999222563,182.23763676,0.00039999,31]
[356707973,1742999222753,500.0,0.00039999,31]
[356707974,1742999222813,151.0,0.00049315,120]
[356707975,1742999222989,500.0,0.00039999,31]
[356707976,1742999223076,500.0,0.00039999,31]
[356707977,1742999223128,500.0,0.00039999,31]
[356707978,1742999223180,151.0,0.00049315,120]
[356707979,1742999223277,500.0,0.00039999,31]
[356707980,1742999223625,151.0,0.00049315,120]
[356707981,1742999223839,151.0,0.00049315,120]
[356707982,1742999224134,151.0,0.00049315,120]
[356707983,1742999224431,151.0,0.00049315,120]
[356707984,1742999224784,151.0,0.00049315,120]
[356707985,1742999225107,-152.0,0.00010223,2]
[356707986,1742999225128,-262.03215103,0.00010226,2]
[356707987,1742999225149,-58.72499848,0.00010641,2]
[356707988,1742999225286,151.0,0.00049315,120]
[356707989,1742999225595,151.0,0.00049315,120]
[356707990,1742999225994,151.0,0.00049315,120]
[356707991,1742999226431,204.353147,0.00049315,120]
[356707992,1742999234091,-140.12318216,0.00010641,2]
[356707993,1742999234113,-300.0,0.0001936,2]
[356707994,1742999234136,-591.59165125,0.00019361,2]
[356707997,1742999243966,-150.0,0.00046885,31]
[356707998,1742999244009,-150.0,0.00046885,31]
[356707999,1742999244053,-153.0,0.00046885,31]
[356708000,1742999244097,-243.0,0.00046885,31]
[356708001,1742999244139,-150.0,0.00046885,31]
[356708002,1742999244179,-295.0,0.00046885,31]
[356708003,1742999244222,-589.0,0.00046885,31]
[356708004,1742999244264,-744.0,0.00046885,31]
[356708005,1742999244306,-1146.0,0.00046885,31]
[356708006,1742999244349,-1178.0,0.00046885,31]
[356708007,1742999244389,-1820.0,0.00046885,31]
[356708008,1742999244432,-150.0,0.00046885,31]
[356708009,1742999244475,-150.0,0.00046885,31]
[356708010,1742999244516,-199.0,0.00046885,31]
[356708011,1742999244557,-202.0,0.00046885,31]
[356708012,1742999244598,-321.0,0.00046885,31]
[356708013,1742999244638,-491.91279045,0.00046885,120]
[356708014,1742999244678,-608.09455631,0.00046885,30]
[356708015,1742999244721,-574.89000712,0.00046885,120]
[356708016,1742999244764,-883.3531903,0.00046885,32]
[356708017,1742999244808,-150.22029613,0.00046885,120]
[356708018,1742999244853,-248.7331654,0.00046885,120]
[356708019,1742999244896,-498.999992,0.00046885,120]
[356708020,1742999244945,-1601.58,0.00046885,120]
[356708021,1742999244988,-1601.58,0.00046885,120]
[356708022,1742999245036,-1601.58,0.00046885,120]
[356708023,1742999245083,-1601.58,0.00046885,120]
[356708024,1742999245128,-1601.58,0.00046885,120]
[356708025,1742999245174,-1601.58,0.00046885,120]
[356708026,1742999245219,-1601.58,0.00046885,120]
[356708027,1742999245265,-1601.58,0.00046885,120]
[356708028,1742999245309,-1601.58,0.00046885,120]
[356708029,1742999245353,-903.80890277,0.00046885,120]
[356708030,1742999245399,-1601.58,0.00046885,120]
[356708031,1742999245442,-1601.58,0.00046885,120]
[356708032,1742999245484,-1601.58,0.00046885,120]
[356708033,1742999245524,-1601.58,0.00046885,120]
[356708034,1742999245565,-1601.58,0.00046885,120]
[356708035,1742999245607,-1601.58,0.00046885,120]
[356708036,1742999245649,-1601.58,0.00046885,120]
[356708037,1742999245695,-557.30056613,0.00046885,120]
[356708038,1742999245737,-1601.58,0.00046885,120]
[356708039,1742999245780,-1601.58,0.00046885,120]
[356708040,1742999245820,-1601.58,0.00046885,120]
[356708041,1742999245864,-1601.58,0.00046885,120]
[356708042,1742999245907,-1601.58,0.00046885,120]
[356708043,1742999245951,-1601.58,0.00046885,120]
[356708044,1742999245994,-1601.58,0.00046885,120]
[356708045,1742999246042,-1601.7493267,0.00046885,120]
[356708046,1742999246087,-968.44465629,0.00046885,120]
[356708047,1742999246128,-545.30688855,0.00046885,120]
[356708048,1742999246169,-2253.11203695,0.00046885,120]
[356708049,1742999246211,-679.23342411,0.00046885,120]
[356708050,1742999246256,-1461.73086703,0.00046885,30]
[356708051,1742999246431,-691.73564242,0.00046885,32]
[356708052,1742999246475,-1206.45507858,0.00046885,60]
[356708053,1742999246518,-240.82074905,0.00046885,120]
[356708054,1742999246560,-1437.33672886,0.00046885,120]
[356708055,1742999246602,-481.30993476,0.00046885,30]
[356708056,1742999246643,-818.64330101,0.00046885,60]
[356708057,1742999246685,-934.90023431,0.00046885,120]
[356708058,1742999246733,-240.76316136,0.00046885,30]
[356708059,1742999246773,-1086.1013503,0.00046885,120]
[356708060,1742999246812,-401.5042239,0.00046885,120]
[356708061,1742999246852,-1572.51755492,0.00046885,30]
[356708062,1742999246892,-937.43593957,0.00046885,120]
[356708063,1742999246931,-391.36716381,0.00046885,120]
[356708064,1742999246972,-994.21989005,0.00046885,120]
[356708065,1742999247011,-440.36829585,0.00046885,120]
[356708066,1742999247049,-2301.95674057,0.00046885,120]
[356708067,1742999247088,-864.0754926,0.00046885,120]
[356708068,1742999247125,-1804.29435438,0.00046885,120]
[356708069,1742999247162,-420.93616904,0.00046885,120]
[356708070,1742999247200,-213.06164799,0.00046885,120]
[356708071,1742999247237,-234.67362707,0.00046885,120]
[356708072,1742999247276,-312.79269431,0.00046885,120]
[356708073,1742999247313,-201.0692168,0.00046885,120]
[356708074,1742999247353,-560.55425464,0.00046885,120]
[356708075,1742999247392,-400.12887664,0.00046885,30]
[356708076,1742999247432,-150.0,0.00046885,120]
[356708077,1742999247483,-1998.65926622,0.00046885,120]
[356708078,1742999247528,-1000.0,0.00046885,30]
[356708079,1742999247569,-2289.31072603,0.00046885,120]
[356708080,1742999247610,-41654.8653491,0.00046885,30]
[356708081,1742999247650,-4004.39145319,0.00046885,120]
[356708082,1742999247693,-67396.49583198,0.00046885,120]
[356708083,1742999247735,-705414.02438445,0.00046885,120]
[356708096,1742999253170,-802461.62817466,0.00046885,120]
[356708097,1742999253213,-150.0,0.00046885,31]
[356708098,1742999253258,-179.0,0.00046885,31]
[356708099,1742999253302,-357.0,0.00046885,31]
[356708100,1742999253346,-715.0,0.00046885,31]
[356708101,1742999253389,-903.0,0.00046885,31]
[356708102,1742999253431,-1391.0,0.00046885,31]
[356708103,1742999253475,-1430.0,0.00046885,31]
[356708104,1742999253516,-2208.0,0.00046885,31]
[356708105,1742999253559,-150.0,0.00046885,31]
[356708106,1742999253602,-150.0,0.00046885,31]
[356708107,1742999253646,-190.0,0.00046885,31]
[356708108,1742999253688,-196.0,0.00046885,31]
[356708109,1742999253735,-310.0,0.00046885,31]
[356708110,1742999253780,-150.0,0.00046885,31]
[356708111,1742999253824,-170.0,0.00046885,31]
[356708112,1742999253869,-340.0,0.00046885,31]
[356708113,1742999253916,-680.0,0.00046885,31]
[356708114,1742999253964,-1360.0,0.00046885,31]
[356708115,1742999254014,-1718.0,0.00046885,31]
[356708116,1742999254059,-2647.0,0.00046885,31]
[356708117,1742999254104,-2721.0,0.00046885,31]
[356708118,1742999254152,-4203.0,0.00046885,31]
[356708119,1742999254200,-1000.0,0.00046885,30]
[356708120,1742999254247,-150.0,0.00046885,31]
[356708121,1742999254293,-152.0,0.00046885,31]
[356708122,1742999254337,-305.0,0.00046885,31]
[356708123,1742999254382,-610.0,0.00046885,31]
[356708124,1742999254427,-1220.0,0.00046885,31]
[356708125,1742999254474,-2440.0,0.00046885,31]
[356708126,1742999254520,-4879.0,0.00046885,31]
[356708127,1742999254567,-6162.0,0.00046885,31]
[356708128,1742999254613,-9497.0,0.00046885,31]
[356708129,1742999254658,-9758.0,0.00046885,31]
[356708130,1742999254704,-15075.0,0.00046885,31]
[356708131,1742999254750,-1167.75940818,0.00046885,30]
[356708132,1742999254799,-2328.0,0.00046885,120]
[356708133,1742999254843,-197.0,0.00046885,120]
[356708134,1742999254891,-1955.0,0.00046885,120]
[356708135,1742999254933,-150.0,0.00046885,31]
[356708136,1742999254975,-1500.0,0.00046885,90]
[356708137,1742999255017,-5683.76789663,0.00046885,60]
[356708138,1742999255057,-155.82314501,0.00046885,120]
[356708139,1742999255097,-155.82314501,0.00046885,120]
[356708140,1742999255139,-155.82314501,0.00046885,120]
[356708141,1742999255181,-155.82314501,0.00046885,120]
[356708142,1742999255224,-155.82314501,0.00046885,120]
[356708143,1742999255267,-155.82314501,0.00046885,120]
[356708144,1742999255308,-155.82314501,0.00046885,120]
[356708145,1742999255350,-155.82314501,0.00046885,120]
[356708146,1742999255390,-155.82314501,0.00046885,120]
[356708147,1742999255433,-333.27445144,0.00046885,120]
[356708148,1742999255477,-2404.734669,0.00046885,120]
[356708149,1742999255519,-563.0,0.00046885,120]
[356708150,1742999255561,-1493.49370521,0.00046885,120]
[356708151,1742999255603,-368.6788923,0.00046885,120]
[356708152,1742999255758,-1828.0,0.00046885,120]
[356708153,1742999255807,-20000.0,0.00046885,40]
[356708154,1742999255854,-10000.0,0.00046885,40]
[356708155,1742999255902,-20000.0,0.00046885,30]
[356708156,1742999255945,-10000.0,0.00046885,30]
[356708157,1742999255986,-1000.0,0.00046885,30]
[356708158,1742999256031,-482.29111,0.00046885,120]
[356708159,1742999256074,-2000.0,0.00046885,120]
[356708160,1742999256117,-40139.37986871,0.00046885,30]
[356708161,1742999256160,-10000.0,0.00046885,48]
[356708162,1742999256200,-500.0,0.00046885,120]
[356708163,1742999256241,-500.0,0.00046885,120]
[356708164,1742999256280,-500.0,0.00046885,120]
[356708165,1742999256318,-500.0,0.00046885,120]
[356708166,1742999256358,-425.46159583,0.00046885,120]
[356708167,1742999256397,-4000.0,0.00046885,120]
[356708168,1742999256439,-352504.65571687,0.00046885,30]
[356708169,1742999256479,-1000.0,0.00046885,30]
[356708170,1742999256517,-100313.0,0.00046885,120]
[356708171,1742999256556,-1319.739,0.00046885,60]
[356708172,1742999256593,-1378.09907229,0.00046885,30]
[356708173,1742999256632,-3351.71727497,0.00046885,120]
[356708174,1742999256669,-270.0,0.00046885,30]
[356708175,1742999256710,-150.0,0.00046885,31]
[356708176,1742999256751,-201.0,0.00046885,30]
[356708177,1742999256791,-1153.34762696,0.00046885,120]
[356708178,1742999256833,-1307.26585233,0.00046885,60]
[356708179,1742999256874,-456.45271863,0.00046885,32]
[356708180,1742999256912,-410.55711767,0.00046885,120]
[356708181,1742999256953,-1248.38886939,0.00046885,120]
[356708182,1742999256993,-231.1576413,0.00046885,30]
[356708183,1742999257036,-1932.0,0.00046885,120]
[356708184,1742999257077,-4550.79198531,0.00046885,90]
[356708185,1742999257118,-1000000.0,0.00046885,30]
[356708186,1742999257158,-804269.0,0.00046885,60]
[356708187,1742999257199,-1499.999999,0.00046885,120]
[356708188,1742999257236,-150.0,0.00046885,31]
[356708189,1742999257276,-150.0,0.00046885,31]
[356708190,1742999257318,-209.0,0.00046885,31]
[356708191,1742999257357,-150.0,0.00046885,31]
[356708192,1742999257396,-54206.36423839,0.00046885,30]
[356708193,1742999257434,-5000.0,0.00046885,120]
[356708194,1742999257474,-258.2562711,0.00046885,120]
[356708195,1742999257514,-121183.55,0.00046885,120]
[356708196,1742999257554,-2375.94030082,0.00046885,60]
[356708197,1742999257593,-150.0,0.00046885,31]
[356708198,1742999257631,-150.0,0.00046885,31]